Cogmind - Beta 14 @@@ ROGUE MODE // 2024.12.05 @ 23:42:16 Player: certified.possum Result: Destroyed by G-34 Mercenary with Small Laser Performance ------------- Evolutions (1) 500 Regions Visited (2) 400 Robots Destroyed (31) 155 Value Destroyed (794) 794 Prototype IDs (0) 0 Alien Tech Used (0) 0 Bonus (56) 56 TOTAL SCORE: 1905 Bonus ------- High Alert Combat Kills 56 Cogmind --------- Core Integrity 0/400 Matter 297/300 Energy 265/265 System Corruption 0% Temperature Cool (8) Movement Core (200) Ox3 Location -9/Materials Parts ------- > --- POWER (1) -------- Improved Ion Engine > --- PROPULSION (3) --- (None) > --- UTILITY (3) ------ Signal Interpreter > --- WEAPON (2) ------- Medium Laser Heavy Assault Rifle > --- INVENTORY (5) ---- Light Ion Engine Hover Unit ECM Suite Peak State ------------ > --- POWER ------------ Improved Ion Engine > --- PROPULSION ------- Improved Hover Unit Improved Hover Unit Improved Hover Unit > --- UTILITY ---------- Signal Interpreter Propulsion Shielding Light Armor Plating > --- WEAPON ----------- Medium Laser Grenade Launcher > --- INVENTORY -------- Light Ion Engine Flight Unit Flight Unit ECM Suite Light Assault Rifle [Rating: 13] Favorites ----------- Power Light Ion Engine Engine Light Ion Engine Propulsion Aluminum Leg Leg Aluminum Leg Hover Unit Improved Hover Unit Flight Unit Flight Unit Utility Signal Interpreter Device ECM Suite Storage Small Storage Unit Processor Signal Interpreter Protection Propulsion Shielding Weapon Grenade Launcher Energy Gun Medium Laser Energy Cannon Beam Cannon Ballistic Gun Light Assault Rifle Launcher Grenade Launcher Build | -11 -10 -9 ------- Run | Yrd Mat Mat Slots Evolved 2 | . . 2 Power . | . . . Propulsion 1 | . . 1 Utility 1 | . . 1 Weapon . | . . . Parts Attached 34 | 6 11 17 Power 4 | 1 1 2 Engine 4 | 1 1 2 Core . | . . . Reactor . | . . . Propulsion 12 | 2 3 7 Treads . | . . . Leg 2 | 2 . . Wheel . | . . . Hover 5 | . . 5 Flight 5 | . 3 2 Utility 7 | 1 3 3 Device 3 | . 1 2 Storage 1 | 1 . . Processor 1 | . 1 . Hackware . | . . . Protection 2 | . 1 1 Artifact . | . . . Weapon 11 | 2 4 5 Energy Gun 3 | 1 . 2 Energy Cannon 2 | . 2 . Ballistic Gun 5 | 1 1 3 Ballistic Cannon . | . . . Launcher 1 | . 1 . Special Weapon . | . . . Impact Weapon . | . . . Slashing Weapon . | . . . Piercing Weapon . | . . . Special Melee Weapon . | . . . Unidentified Prototypes . | . . . Parts Lost 10 | . 1 9 Power 1 | . 1 . Propulsion 5 | . . 5 Utility 2 | . . 2 Weapon 2 | . . 2 Highest Loss Streak 4 | . 1 4 To Critical Strikes . | . . . Average Slot Usage (%) 76 | . 80 68 Engine 12 | . 14 9 Leg 9 | . 14 . Hover 5 | . . 14 Flight 9 | . 12 5 Device 2 | . 3 . Storage 4 | . 7 . Processor 5 | . 2 11 Protection 5 | . 3 9 Energy Gun 5 | . 2 9 Energy Cannon 5 | . 9 . Ballistic Gun 3 | . 1 6 Launcher 6 | . 7 3 Peak Build Rating 13 | 6 6 13 Average Rating 6 | 4 5 8 On Entrance 4 | . 6 6 Naked Turns . | . . . Heaviest Build 16 | 10 14 16 Greatest Support 21 | 20 20 21 Greatest Overweight (x) 3 | . . 3 Average Overweight (x) . | . . . Largest Inventory Capacity 8 | 8 8 5 Average Capacity 6 | 7 6 5 Most Carried 8 | 5 8 5 Average Carried 3 | 1 3 2 Final Capacity 8 | 8 5 5 Final Carried 3 | 2 3 3 Class Distribution -------------------- 100% | Mutant Dominant Class ---------------- Mutant | -10/Materials Mutant | -9/Materials Resources | -11 -10 -9 ----------- Run | Yrd Mat Mat Matter Collected 728 | 201 291 236 Remotely . | . . . Salvage Created 829 | . 385 444 Parts 54 | . 21 33 Haulers Intercepted . | . . . Recyclers Shooed 2 | . 2 . Parts Field Recycled . | . . . Retrieved Matter . | . . . Parts Self-Destructed . | . . . Prevented . | . . . Kills | -11 -10 -9 ------- Run | Yrd Mat Mat Combat Hostiles Destroyed 21 | . 8 13 Guns 9 | . . 9 Cannons 3 | . 3 . AOE 9 | . 5 4 Classes Destroyed 7 | . 6 1 Worker 2 | . 2 . Builder 2 | . 1 1 Recycler 2 | . 2 . Watcher 4 | . 3 1 Swarmer 6 | . 3 3 Grunt 11 | . 5 6 Sentry 4 | . . 4 Best Kill Streak 7 | . 4 7 Combat Bots Only 7 | . 3 7 Max Kills in Single Turn 2 | . 2 1 Gunslinging . | . . . Exploded 2 | . 2 1 Melee . | . . . Uniques/NPCs Destroyed . | . . . Combat | -11 -10 -9 -------- Run | Yrd Mat Mat Hostile Shots Fired 128 | . 29 99 Missed 49 | . 13 36 Damage Taken 1080 | . 186 894 Core 467 | . 64 403 Absorbed by Shields . | . . . Redirected to Shielding 50 | . . 50 Regen/Repaired (Parts) 57 | . 10 47 Core Remaining (%) 87 | 100 74 . Volleys Fired 68 | 1 28 39 Largest 2 | 2 2 2 Hottest 120 | 60 120 80 Shots Fired 116 | 2 41 73 Gun 72 | 2 5 65 Cannon 23 | . 23 . Launcher 21 | . 13 8 Special . | . . . Kinetic 29 | 1 . 28 Thermal 66 | 1 28 37 Explosive 21 | . 13 8 Electromagnetic . | . . . Robot Hit Streak 14 | . 8 14 Robot Miss Streak 5 | 2 5 2 Penetration Max . | . . . Secondary Targets 1 | . . 1 Max Gunslinging Chain 1 | . . 1 Shots Hit Robots 61 | . 16 45 Core Hits 58 | 1 25 32 Critical Kills . | . . . Critical Parts Destroyed . | . . . Critical Strikes 3 | . . 3 Burn 3 | . . 3 Melee Attacks . | . . . Impact . | . . . Slashing . | . . . Piercing . | . . . Sneak Attacks . | . . . Combat Hostiles . | . . . Follow-up Attacks . | . . . Damage Inflicted 1652 | 11 854 787 Guns 492 | 11 22 459 Cannons 158 | . 158 . Explosions 1001 | . 673 328 Melee . | . . . Ramming 1 | . 1 . Kinetic 148 | . . 148 Thermal 598 | 11 180 407 Explosive 905 | . 673 232 Electromagnetic . | . . . Impact . | . . . Slashing . | . . . Piercing . | . . . Highest Corruption 2 | . 2 . Average Corruption 2 | . 2 . Corruption Purged . | . . . Corruption Blocked . | . . . Effects 3 | . 3 . Message Errors 1 | . 1 . Data Loss (minor) 1 | . 1 . Alerts 1 | . 1 . Overload Shots . | . . . Overflow Damage 15 | . . 15 Projectiles . | . . . Explosions 15 | . . 15 Melee . | . . . Knockbacks . | . . . Impact . | . . . Kinetic . | . . . Secondary . | . . . Self-Inflicted Damage 153 | . . 153 Shots 2 | . . 2 Rammed . | . . . Targets Rammed 1 | . 1 . Kicked 1 | . 1 . Crushed . | . . . Highest Temperature 416 | 20 116 416 Average Temperature 103 | 15 44 144 Received Heat Transfer 408 | . 63 345 Effects 2 | . . 2 Shutdowns 1 | . . 1 Energy Bleed 1 | . . 1 Siege Activations . | . . . Robots Corrupted . | . . . Combat Hostiles . | . . . Parts Fried . | . . . Impact Corruptions . | . . . Robots Melted . | . . . Combat Hostiles . | . . . Parts Melted 6 | . . 6 Heat Transferred 1605 | 25 383 1197 Parts Sabotaged . | . . . Parts Stolen . | . . . Parts Stripped . | . . . Power Chain Reactions . | . . . Alert | -11 -10 -9 ------- Run | Yrd Mat Mat Peak Influence 571 | . 385 571 Initial 74 | . . 74 Average 230 | . 147 406 Maximum Alert Level 2 | . 1 2 Low Security (%) 60 | 100 82 18 Level 1 18 | . 17 21 Level 2 21 | . . 60 Level 3 . | . . . Level 4 . | . . . Level 5 . | . . . High Security . | . . . Max Security . | . . . Squads Dispatched 2 | . 1 1 Investigation . | . . . Extermination . | . . . Reinforcement 2 | . 1 1 Assault . | . . . Garrison . | . . . Intercept . | . . . Searches Triggered . | . . . Construction Impeded 1 | . . 1 Haulers Reinforced . | . . . Active Scanning Responses . | . . . Cargo Convoy Interrupts . | . . . Stealth | -11 -10 -9 --------- Run | Yrd Mat Mat Distress Signals 1 | . 1 . Communications Jammed . | . . . Distress Signals . | . . . Times Spotted 32 | . 13 19 Peak Tracking Total 10 | . 4 10 Tactical Retreats 3 | . . 3 Traps | -11 -10 -9 ------- Run | Yrd Mat Mat Traps Triggered 2 | . 2 . Indirectly . | . . . Trap Hack Attempts . | . . . Triggered . | . . . Disarmed . | . . . Reprogrammed . | . . . Reused . | . . . Traps Extracted . | . . . Installed . | . . . Triggered . | . . . Machines | -11 -10 -9 ---------- Run | Yrd Mat Mat Machines Disabled 4 | . 1 3 Max in Single Turn 2 | . 1 2 Machines Repaired . | . . . Machines Dismantled . | . . . Machines Sabotaged . | . . . Overloaded Fab Kills . | . . . Hacking | -11 -10 -9 --------- Run | Yrd Mat Mat Machines Accessed 3 | . 1 2 Terminals . | . . . Fabricators . | . . . Repair Stations 2 | . 1 1 Recycling Units . | . . . Scanalyzers 1 | . . 1 Garrison Access . | . . . Total Hacks 6 | . 2 4 Successful 6 | . 2 4 Failed . | . . . Catastrophic . | . . . Database Lockouts . | . . . Manual . | . . . Terminals . | . . . Fabricators . | . . . Repair Stations 4 | . 2 2 Recycling Units . | . . . Scanalyzers 2 | . . 2 Garrison Access . | . . . Terminal Hacks . | . . . Fabricator Hacks . | . . . Repair Station Hacks 4 | . 2 2 Scan Component 2 | . 1 1 Repair 2 | . 1 1 Recycling Unit Hacks . | . . . Scanalyzer 2 | . . 2 Insert Component 1 | . . 1 Analyze 1 | . . 1 Garrison Access Hacks . | . . . Unauthorized Hacks . | . . . Terminals . | . . . Fabricators . | . . . Repair Stations . | . . . Recycling Units . | . . . Scanalyzers . | . . . Garrison Access . | . . . Data Cores Recovered . | . . . Used . | . . . Hacking Detections 3 | . 1 2 Full Trace Events . | . . . Feedback Events . | . . . Feedback Blocked . | . . . Robot Schematics Acquired . | . . . Robots Built . | . . . Authchips . | . . . Time . | . . . Total Robot Build Rating . | . . . Part Schematics Acquired 1 | . . 1 Parts Built . | . . . Authchips . | . . . Time . | . . . Total Part Build Rating . | . . . Parts Repaired 2 | . 1 1 Time 58 | . 26 32 Parts Recycled . | . . . Recycled Matter . | . . . Retrieved Matter . | . . . Retrieved Components . | . . . Parts Scanalyzed 1 | . . 1 Part Schematics Acquired 1 | . . 1 Parts Damaged . | . . . Bothacking | -11 -10 -9 ------------ Run | Yrd Mat Mat Used RIF Installer . | . . . Robots Hacked . | . . . Non-combat . | . . . Combat . | . . . Robot Hacks Applied . | . . . Relay Couplers Released . | . . . Fabnet Peak Effective % . | . . . Robots Rewired . | . . . Allies Hacked . | . . . Hacks Repelled . | . . . Allies | -11 -10 -9 -------- Run | Yrd Mat Mat Total Allies . | . . . Largest Group . | . . . Highest-Rated Group . | . . . Highest-Rated Ally . | . . . Total Orders . | . . . Ally Attacks . | . . . Total Damage . | . . . Kills . | . . . Allies Corrupted . | . . . Allies Melted . | . . . Intel | -11 -10 -9 ------- Run | Yrd Mat Mat Robot Analysis Total . | . . . Derelict Logs Recovered . | . . . Drone Launches . | . . . Drone Recoveries . | . . . Exploration | -11 -10 -9 ------------- Run | Yrd Mat Mat Turns Passed 996 | 64 577 355 Spaces Moved 1096 | 46 774 276 Core 50 | 11 . 39 Treads . | . . . Legs 235 | 35 200 . Wheels . | . . . Hover 113 | . . 113 Flight 698 | . 574 124 Fastest Speed 37 | 50 37 37 Average Speed 62 | 103 58 67 Slowest Speed 200 | 120 120 200 Overloaded Moves . | . . . Propulsion Burnouts . | . . . Robots Hopped 2 | . . 2 Cave-ins Triggered . | . . . Exploration Rate (%) 43 | 4 96 31 Regions Visited 2 Branch Regions . Pre-discovered Areas . | . . . Known Exits Taken 1 | . 1 . Unknown Exits Taken 1 | 1 . . Scrap Searched . | . . . Spaces Dug . | . . . Terrain Destroyed 145 | . 71 74 Melee . | . . . Projectile . | . . . AOE 145 | . 71 74 Terrain Rammed . | . . . Walls Destroyed . | . . . Machines Disabled . | . . . Actions | -11 -10 -9 --------- Run | Yrd Mat Mat Total 1293 | 60 858 375 Wait 55 | . 26 29 Move 1090 | 45 773 272 Hop 2 | . . 2 Pick Up 27 | 8 10 9 Fast Attach 2 | . . 2 Attach 23 | 6 6 11 Detach 6 | . 2 4 Swap 9 | . 5 4 Drop 10 | . 7 3 Fire 68 | 1 28 39 Melee . | . . . Ram . | . . . Kick 1 | . 1 . Crush . | . . . Escape Stasis . | . . . Rewire . | . . . Trap . | . . . Miscellaneous . | . . . Route ------- -11/Scrapyard -10/Materials (discovered 5 exits: *Mat x3 / *Min x2) -9/Materials (discovered 1 exit: *Mat) History --------- Turn | Location | Event 39 | -11/Scrapyard | Discovered new exit (range 15) 65 | -11/Scrapyard | Entered Materials 149 | -10/Materials | Discovered new exit (range 7) 285 | -10/Materials | Discovered new exit (range 6) 305 | -10/Materials | Build established: Mutant 400 | -10/Materials | Discovered new exit (range 11) 441 | -10/Materials | Discovered new exit (range 15) 469 | -10/Materials | Discovered new exit (range 10) 561 | -10/Materials | Identified exit to Materials 599 | -10/Materials | Repaired Flight Unit 630 | -10/Materials | Identified exit to Mines 642 | -10/Materials | Entered another Materials area 642 | -9/Materials | Evolved 2 slots: Propulsion x1, Utility x1 761 | -9/Materials | Discovered new exit (range 12) 815 | -9/Materials | Core integrity fell below 50% 848 | -9/Materials | Destroyed 7 combat bots 851 | -9/Materials | Identified exit to Materials 857 | -9/Materials | Lost 4 parts (2n2u) 899 | -9/Materials | Repaired Imp. Ion Engine 900 | -9/Materials | Core integrity fell below 20% 929 | -9/Materials | Lost 3 parts (2n1w) 997 | -9/Materials | Destroyed by G-34 Mercenary with Small Laser Last Messages --------------- Y-45 Defender suffers critical hit (Burn). Imp. Ion Engine melted. Heat Sink melted. Lgt. Treads melted. Y-45 Defender destroyed. Acquired 45 matter. Acquired Hvy. Assault Rifle. G-34 Mercenary destroyed. Acquired Imp. Ion Engine. W-16 Scout destroyed. Acquired Hover Unit. U-05 Engineer builds a Door. Acquired 29 matter. K-01 Serf cleans the Neutrino Reactor. R-06 Scavenger collects Lgt. Ion Engine. R-06 Scavenger collects Hover Unit. R-06 Scavenger collects Signal Interpreter. K-01 Serf destroyed. Acquired 7 matter. K-01 Serf collects debris. Map ----- +----------------------------------------------------+ | ?????????????????????????????????????????????????? | | ?????????????????????????????????????????????????? | | ?????????????????????????????????????????????????? | | ?????????????????????????????????????????????????? | | ?????????????????????????????????????????????????? | | ?????????????????????????????????????????????????? | | ?????????????????????????????????????????????????? | | ?????????????????????????????????????????????????? | | ?????????????????????????????????????????????????? | | ?????????????????????????????????????????????????? | | ?????????????????????????????????????????????????? | | ?????????????????????????????????????????????????? | | ?????????????????????????????????????????????????? | | ?????????????????????????????????????????????????? | | ?????????????????????????????????????????????????? | | ?????????????????????????????????????????????????? | | ??????????????? ###??????????????????????????????? | | ???????????????? ??????????????????????????????? | | ????????????????? ?????????????????????????????? | | ?????????????????? ????????????????????????????? | | ??????????????????# ????????????????????????????? | | ??????????????????# ???????????????????????????? | | ??????????????"???# ???????????????????????????? | | ???????????# "T" ?# ##########+######+?????????? | | ???????????# # a ???????? | | ???????????# a/g @ k ???????? | | ???????????# * # !%* ???????? | | ??????????????????# k = #########!! ???"???? | | ??????????????"" # #########?????? """ | | ?????????????""" g u + #???? | | ?????????????""" ###### # #?? | | ?????????????""" ??????# # # | | ??????????????"????????# # + | | ?????????????????????###+##+# # ####????? | | ?????????????????????# #########?? #???????? | | ?????????????????????# """ #????????????#???????? | | ?????????????????????# R" #????????????????????? | | ?????????????????????# """ #????????????????????? | | ?????????????????????# +????????????????????? | | ??????????#??????????# [%= #?????? ????????? | | ?????????# #?????########+### ????????? | | ????????+ ????# /%* ????????? | | ????????# "????# ! "T" #=########???????????????? | | ????????# "????? # #??????????????????????? | | ????????# ""???#####+#?# #??????????????????????? | | ????????# ??????# ###+#######????????????????? | | ???####?# """ #????#?# #????????????????? | | ###? ?# """ #??????# #????????????????? | | #? ?# """ #??????# #????????????????? | | #? ?+ ###### # #????????????????? | +----------------------------------------------------+ Best States ------------- Heat Dissipation 28 Energy Generation 12 Energy Capacity 265 Matter Stores 300 Matter Capacity 300 Sight Range 16 Terrain Scan Density 10 ECM Strength 1 Armor Coverage 150 Propulsion Shielding 33 Evasion (%) 62 Item Schematics ----------------- ECM Suite | -9/Materials | Scanalyzed Robot Schematics ------------------ None Fabricated ------------ Nothing Alien Tech Used ----------------- None Achievements -------------- None Challenges ------------ None Game ------ Seed SpikedDiametricBuckler Manual? 0 Play Time 00:14:18 Cumulative 4.3 hours Start 2024.12.05 @ 23:29:31 End 2024.12.05 @ 23:42:16 Sessions 1 Manual Loads 0 Difficulty Rogue Special Mode None Game No. 13 Rogue 13 Adventurer 0 Explorer 0 Win Type - Total 0 Types 0/0/0/0/0/0/0/0/0 Lore% 2 Gallery% 10 Achievement% 11 Wizard Run 0 Options --------- Layout 1 ASCII 0 Keyboard 0 Movement Mouse Keybinds 0 Fullscreen 2 Font 32/Tamsyn Map View 50x35 Zoom Use 0% Tactical HUD 0 Map Filters NONE Filters NONE Steam 1 RUN: 13f6b656-ddeb-4adf-93ac-59d894d534d3